[Event "FIDE WCCC U8 2018"]
[Site "Santiago de Compostela"]
[Date "2018.11.09"]
[Round "5"]
[White "Tulendinov, Dinmukhammed"]
[Black "Azadaliyev, Jahandar"]
[Result "0-1"]
[ECO "B17"]
[WhiteElo "1430"]
[BlackElo "1674"]
[Annotator "NA RC"]
[PlyCount "112"]
[EventDate "2018.11.04"]
[EventType "swiss"]
[EventCountry "ESP"]
[SourceTitle "playchess.com"]
[Source "ChessBase"]
[SourceQuality "1"]
[TimeControl "40/5400+30:1800+30"]

1. e4 c6 2. d4 d5 3. Nd2 dxe4 4. Nxe4 Nd7 5. Nf3 Ngf6 6. Nxf6+ Nxf6 7. c3 Bg4 8. h3 {[%emt 0:05:02]} Bxf3 {[%emt 0:14:56]} 9. Qxf3 {[%emt 0:00:00]} Qd5 {[%emt 0:00:15]} 10. Be2 {[%emt 0:00:00]} e6 {[%emt 0:01:07]} 11. O-O {[%emt 0:00:00]} Qxf3 {[%emt 0:01:25]} 12. Bxf3 {[%emt 0:00:00]} Bd6 {[%emt 0:00:43]} 13. Be3 {[%emt 0:03:14]} Ke7 {[%emt 0:04:13]} 14. c4 {[%emt 0:09:13]} Rhd8 {[%emt 0:01:38]} 15. Rad1 {[%emt 0:03:12]} Bc7 {[%emt 0:05:29]} 16. g4 {[%emt 0:05:44]} Bd6 {[%emt 0:31:57]} 17. Rfe1 {[%emt 0:17:08]} Nd7 {[%emt 0:06:57]} 18. Bg2 {[%emt 0:04:03]} a5 {[%emt 0:03:13]} 19. f4 {[%emt 0:12:51]} f6 {[%emt 0:00:48]} 20. Kf1 {[%emt 0:11:05]} Kf7 {[%emt 0:01:05]} 21. Rd3 {[%emt 0:02:31]} Nb6 {[%emt 0:03:06]} 22. b3 {[%emt 0:04:43]} Nc8 {[%emt 0:10:35]} 23. Kf2 {[%emt 0:05:03]} Ne7 {[%emt 0:01:19]} 24. Bc1 {[%emt 0:01:50]} a4 {[%emt 0:04:27]} 25. Kf3 {[%emt 0:04:39]} b5 {[%emt 0:01:59]} 26. Re2 {[%emt 0:05:32]} axb3 {[%emt 0:01:22]} 27. axb3 {[%emt 0:00:21]} bxc4 {[%emt 0:00:20]} 28. bxc4 {[%emt 0:00:08]} Ra4 {[%emt 0:00:08]} 29. Rc2 {[%emt 0:01:08]} Rb8 {[%emt 0:00:28]} 30. Bd2 {[%emt 0:00:31]} h5 {[%emt 0:00:36]} 31. g5 {[%emt 0:01:02]} Nf5 {[%emt 0:00:16]} 32. Ke2 {[%emt 0:00:37]} c5 {[%emt 0:00:43]} 33. Be3 {[%emt 0:00:36]} cxd4 {[%emt 0:00:32]} 34. Bxd4 {[%emt 0:00:07]} Bxf4 {[%emt 0:00:06]} 35. gxf6 {[%emt 0:00:10]} gxf6 {[%emt 0:00:07]} 36. Bf2 {[%emt 0:00:17]} e5 {[%emt 0:04:02]} 37. Bd5+ {[%emt 0:00:51]} Kg6 {[%emt 0:01:29]} 38. Be4 {[%emt 0:02:10]} Kg5 {[%emt 0:01:09]} 39. Rd1 {[%emt 0:00:00]} Rb3 {[%emt 0:00:00]} 40. Bd3 {[%emt 0:00:00]} Ng3+ {[%emt 0:00:00]} 41. Bxg3 {[%emt 0:13:06]} Bxg3 {[%emt 0:05:47]} 42. Rdc1 {[%emt 0:08:31]} Raa3 {[%emt 0:00:49]} 43. Rd2 {[%emt 0:00:44]} Bf4 {[%emt 0:00:21]} 44. Rg1+ {[%emt 0:00:12]} Kh4 {[%emt 0:00:06]} 45. Rdd1 {[%emt 0:00:21]} e4 {[%emt 0:00:25]} 46. Bb1 {[%emt 0:00:40]} Re3+ {[%emt 0:00:18]} 47. Kf1 {[%emt 0:00:14]} Rf3+ {[%emt 0:00:29]} 48. Kg2 {[%emt 0:00:21]} Rg3+ {[%emt 0:01:39]} 49. Kf1 {[%emt 0:00:16]} f5 {[%emt 0:01:05]} 50. Rxg3 {[%emt 0:00:40]} Kxg3 {[%emt 0:01:02]} 51. c5 {[%emt 0:01:12]} Rc3 {[%emt 0:00:56]} 52. Ke2 {[%emt 0:01:19]} Rxc5 {[%emt 0:00:17]} 53. Rg1+ {[%emt 0:00:13]} Kxh3 {[%emt 0:00:27]} 54. Rh1+ {[%emt 0:00:33]} Kg4 {[%emt 0:00:19]} 55. Rg1+ {[%emt 0:00:09]} Bg3 {[%emt 0:00:08]} 56. Ke3 {[%emt 0:02:17]} h4 {[%emt 0:00:58]} 0-1

[Event "FIDE WCCC U8 2018"]
[Site "Santiago de Compostela"]
[Date "2018.11.10"]
[Round "6"]
[White "Finek, Vaclav"]
[Black "Balint, Peter"]
[Result "1-0"]
[ECO "D60"]
[WhiteElo "1942"]
[BlackElo "1563"]
[Annotator "NA"]
[PlyCount "59"]
[EventDate "2018.11.04"]
[EventType "swiss"]
[EventCountry "ESP"]
[SourceTitle "playchess.com"]
[Source "ChessBase"]
[SourceQuality "1"]
[TimeControl "40/5400+30:1800+30"]

1. d4 {[%emt 0:00:00]} d5 {[%emt 0:00:00]} 2. c4 {[%emt 0:00:00]} e6 {[%emt 0:00:00]} 3. Nc3 {[%emt 0:00:00]} Nf6 {[%emt 0:00:00]} 4. Bg5 {[%emt 0:00:00]} Be7 {[%emt 0:01:40]} 5. e3 {[%emt 0:00:24]} O-O {[%emt 0:00:52]} 6. Nf3 {[%emt 0:00:16]} Nbd7 {[%emt 0:04:24]} 7. Bd3 {[%emt 0:01:28]} dxc4 {[%emt 0:00:26]} 8. Bxc4 {[%emt 0:00:09]} b6 {[%emt 0:07:50]} 9. O-O $11 {[%emt 0:01:45] LiveBook: 5 Games} Bb7 {[%emt 0:12:12]} 10. Qe2 {[%emt 0:05:07]} c5 {[%emt 0:23:13]} 11. Rfd1 {[%emt 0:06:10]} Ne4 {[%emt 0:15:51]} 12. Nxe4 {[%emt 0:03:31]} Bxe4 {[%emt 0:00:44]} 13. Bf4 {[%emt 0:04:25]} Qc8 {[%emt 0:11:40]} 14. Rac1 {[%emt 0:10:27]} a6 {[%emt 0:14:31]} 15. Bd3 {[%emt 0:17:04]} Bxd3 {[%emt 0:03:05]} 16. Qxd3 {[%emt 0:00:14]} Qb7 {[%emt 0:00:19]} 17. b4 {[%emt 0:06:42]} Rfc8 {[%emt 0:00:49]} 18. dxc5 {[%emt 0:00:26]} Nf6 {[%emt 0:00:23]} 19. Bd6 {[%emt 0:04:04]} Bxd6 {[%emt 0:00:49]} 20. cxd6 {[%emt 0:10:33]} Nd5 {[%emt 0:00:34]} 21. Qd2 {[%emt 0:03:20]} Rd8 {[%emt 0:00:30]} 22. e4 {[%emt 0:00:56]} Nf6 {[%emt 0:00:04]} 23. e5 {[%emt 0:00:38]} Nd5 {[%emt 0:00:04]} 24. Nd4 {[%emt 0:03:35]} Rac8 {[%emt 0:00:15]} 25. g3 {[%emt 0:01:53]} Kh8 {[%emt 0:00:41]} 26. Rxc8 {[%emt 0:02:54]} Rxc8 {[%emt 0:00:10]} 27. Rc1 {[%emt 0:00:14]} Rxc1+ {[%emt 0:01:23]} 28. Qxc1 {[%emt 0:00:02]} Kg8 {[%emt 0:00:55]} 29. Qc6 {[%emt 0:00:12]} Qb8 {[%emt 0:00:30]} 30. Qd7 {[%emt 0:03:56]} 1-0

[Event "FIDE WCCC U8 2018"]
[Site "Santiago de Compostela"]
[Date "2018.11.10"]
[Round "6"]
[White "Begmuratov, Khumoyun"]
[Black "Villa Tornero, Alex"]
[Result "1/2-1/2"]
[ECO "B01"]
[WhiteElo "1880"]
[BlackElo "1441"]
[Annotator "NA"]
[PlyCount "81"]
[EventDate "2018.11.04"]
[EventType "swiss"]
[EventCountry "ESP"]
[SourceTitle "playchess.com"]
[Source "ChessBase"]
[SourceQuality "1"]
[TimeControl "40/5400+30:1800+30"]

1. e4 {[%emt 0:00:00]} d5 {[%emt 0:00:02]} 2. exd5 {[%emt 0:00:40]} Qxd5 {[%emt 0:01:13]} 3. Nc3 {[%emt 0:00:51]} Qd6 {[%emt 0:00:41]} 4. d4 {[%emt 0:01:26]} Nf6 {[%emt 0:01:00]} 5. Nf3 {[%emt 0:02:09]} a6 {[%emt 0:01:16]} 6. Be2 {[%emt 0:06:59]} Bf5 {[%emt 0:09:46]} 7. O-O {[%emt 0:06:53]} Nc6 {[%emt 0:02:38]} 8. Be3 {[%emt 0:03:43]} O-O-O {[%emt 0:02:08]} 9. Ng5 {[%emt 0:25:25]} Bg6 {[%emt 0:05:46]} 10. Nf3 {[%emt 0:18:19]} e5 {[%emt 0:15:05]} 11. dxe5 {[%emt 0:00:10]} Nxe5 {[%emt 0:00:25]} 12. Nxe5 {[%emt 0:00:17]} Qxe5 {[%emt 0:00:27]} 13. Qc1 {[%emt 0:00:03]} Bd6 {[%emt 0:01:44]} 14. f4 {[%emt 0:00:27]} Qe6 {[%emt 0:01:08]} 15. Bd3 {[%emt 0:08:25]} Bxd3 {[%emt 0:03:17]} 16. cxd3 {[%emt 0:00:08]} Rhe8 {[%emt 0:00:49]} 17. Bf2 {[%emt 0:03:30]} Ng4 {[%emt 0:04:45]} 18. Ne4 {[%emt 0:11:29]} Nxf2 {[%emt 0:04:22]} 19. Rxf2 {[%emt 0:00:42]} f5 {[%emt 0:01:03]} 20. Ng3 {[%emt 0:02:04]} Qd5 {[%emt 0:02:06]} 21. Rf3 {[%emt 0:00:29]} g6 {[%emt 0:02:40]} 22. Qc2 {[%emt 0:00:29]} Qc5+ {[%emt 0:05:46]} 23. Qxc5 {[%emt 0:01:01]} Bxc5+ {[%emt 0:00:32]} 24. Kf1 {[%emt 0:00:08]} Re3 {[%emt 0:00:54]} 25. Rd1 {[%emt 0:00:03]} Rxf3+ {[%emt 0:00:57]} 26. gxf3 {[%emt 0:00:07]} Be3 {[%emt 0:01:27]} 27. Ne2 {[%emt 0:00:25]} c5 {[%emt 0:00:49]} 28. Kg2 {[%emt 0:00:48]} b5 {[%emt 0:04:37]} 29. Kg3 {[%emt 0:00:42]} b4 {[%emt 0:03:23]} 30. h4 {[%emt 0:02:36]} h5 {[%emt 0:02:17]} 31. Kg2 {[%emt 0:00:11]} Kc7 {[%emt 0:00:49]} 32. Kg3 {[%emt 0:00:08]} Kc6 {[%emt 0:00:21]} 33. Kg2 {[%emt 0:00:14]} Kb5 {[%emt 0:00:29]} 34. Kg3 {[%emt 0:00:13]} a5 {[%emt 0:00:47]} 35. Kg2 {[%emt 0:00:08]} Bd4 {[%emt 0:11:32]} 36. Rd2 {[%emt 0:00:39]} Be3 {[%emt 0:01:16]} 37. Rd1 {[%emt 0:00:08]} Bd4 {[%emt 0:00:32]} 38. Rd2 {[%emt 0:00:06]} Be3 {[%emt 0:00:13]} 39. Rd1 {[%emt 0:00:05]} Bd4 {[%emt 0:00:09]} 40. Rd2 {[%emt 0:00:00]} Be3 {[%emt 0:00:00]} 41. Rd1 {[%emt 0:00:00]} 1/2-1/2

[Event "FIDE WCCC U8 2018"]
[Site "Santiago de Compostela"]
[Date "2018.11.10"]
[Round "6"]
[White "Azadaliyev, Jahandar"]
[Black "Jaakkola, Niklas"]
[Result "1-0"]
[ECO "E73"]
[WhiteElo "1674"]
[BlackElo "1469"]
[Annotator "NA"]
[PlyCount "77"]
[EventDate "2018.11.04"]
[EventType "swiss"]
[EventCountry "ESP"]
[SourceTitle "playchess.com"]
[Source "ChessBase"]
[SourceQuality "1"]
[TimeControl "40/5400+30:1800+30"]

1. d4 {[%emt 0:00:00]} Nf6 {[%emt 0:00:00]} 2. c4 {[%emt 0:00:22]} g6 {[%emt 0:00:00]} 3. Nc3 {[%emt 0:00:56]} Bg7 {[%emt 0:00:00]} 4. e4 {[%emt 0:00:50]} d6 {[%emt 0:00:04]} 5. Be2 {[%emt 0:01:01]} O-O {[%emt 0:00:21]} 6. Bg5 {[%emt 0:00:42]} h6 {[%emt 0:00:15]} 7. Be3 {[%emt 0:00:46]} c6 {[%emt 0:00:17]} 8. Qd2 {[%emt 0:01:22]} Kh7 {[%emt 0:00:20]} 9. Nf3 {[%emt 0:16:02]} Nbd7 {[%emt 0:12:03]} 10. O-O {[%emt 0:03:24]} e5 {[%emt 0:03:50]} 11. Rad1 {[%emt 0:01:26]} Qe7 {[%emt 0:01:40]} 12. d5 {[%emt 0:03:32]} c5 {[%emt 0:02:17]} 13. Ne1 {[%emt 0:01:39]} Ne8 {[%emt 0:03:27]} 14. f4 {[%emt 0:04:11]} f5 {[%emt 0:01:27]} 15. Bd3 {[%emt 0:01:47]} fxe4 {[%emt 0:04:22]} 16. Nxe4 {[%emt 0:01:57]} exf4 {[%emt 0:00:43]} 17. Bxf4 {[%emt 0:00:22]} Ne5 {[%emt 0:01:22]} 18. Bxe5 {[%emt 0:11:45]} Rxf1+ {[%emt 0:02:11]} 19. Kxf1 {[%emt 0:02:12]} Qxe5 {[%emt 0:00:25]} 20. Nf3 {[%emt 0:00:19]} Qxb2 {[%emt 0:01:34]} 21. Qf4 {[%emt 0:01:19]} Bf5 {[%emt 0:06:16]} 22. g4 {[%emt 0:01:34]} Bxe4 {[%emt 0:01:16]} 23. Qxe4 {[%emt 0:00:10]} Qf6 {[%emt 0:02:35]} 24. h4 {[%emt 0:00:19]} Nc7 {[%emt 0:02:03]} 25. g5 {[%emt 0:09:18]} hxg5 {[%emt 0:02:23]} 26. hxg5 {[%emt 0:00:08]} Qf7 {[%emt 0:01:49]} 27. Qg4 {[%emt 0:00:41]} b5 {[%emt 0:07:00]} 28. Qh5+ {[%emt 0:00:43]} Kg8 {[%emt 0:00:18]} 29. Bxg6 {[%emt 0:00:21]} Qf4 {[%emt 0:00:36]} 30. Re1 {[%emt 0:01:08]} Qxc4+ {[%emt 0:01:18]} 31. Kf2 {[%emt 0:03:34]} Nxd5 {[%emt 0:03:07]} 32. Re4 {[%emt 0:09:07]} Qxa2+ {[%emt 0:08:15]} 33. Kg3 {[%emt 0:00:13]} Qb3 {[%emt 0:04:55]} 34. Be8 {[%emt 0:01:20]} Nc7 {[%emt 0:01:51]} 35. Bg6 {[%emt 0:01:05]} Nd5 {[%emt 0:00:50]} 36. Bf5 {[%emt 0:04:28]} Be5+ {[%emt 0:05:57]} 37. Rxe5 {[%emt 0:00:10]} dxe5 {[%emt 0:00:28]} 38. Qh7+ {[%emt 0:00:04]} Kf8 {[%emt 0:00:24]} 39. Be6 {[%emt 0:00:00]} 1-0

[Event "FIDE WCCC U8 2018"]
[Site "Santiago de Compostela"]
[Date "2018.11.10"]
[Round "6"]
[White "Chen, Ryo"]
[Black "Durovka, Marek"]
[Result "1-0"]
[ECO "B43"]
[WhiteElo "1573"]
[BlackElo "1370"]
[Annotator "NA"]
[PlyCount "41"]
[EventDate "2018.11.04"]
[EventType "swiss"]
[EventCountry "ESP"]
[SourceTitle "playchess.com"]
[Source "ChessBase"]
[SourceQuality "1"]
[TimeControl "40/5400+30:1800+30"]

1. e4 {[%emt 0:00:00]} c5 {[%emt 0:00:00]} 2. Nf3 {[%emt 0:00:00]} e6 {[%emt 0:00:14]} 3. d4 {[%emt 0:00:00]} cxd4 {[%emt 0:00:13]} 4. Nxd4 {[%emt 0:00:04]} a6 {[%emt 0:01:19]} 5. Nc3 {[%emt 0:00:20]} b5 {[%emt 0:01:12]} 6. Be2 {[%emt 0:00:33]} Bb7 {[%emt 0:05:07]} 7. a3 {[%emt 0:03:31]} Qc7 {[%emt 0:01:52]} 8. O-O {[%emt 0:00:25]} Nf6 {[%emt 0:02:20]} 9. Qd3 {[%emt 0:04:20]} Be7 {[%emt 0:06:10]} 10. Be3 {[%emt 0:00:47]} O-O {[%emt 0:08:20]} 11. f4 {[%emt 0:00:57]} d6 {[%emt 0:02:36]} 12. Bf3 {[%emt 0:01:05]} Nbd7 {[%emt 0:05:54]} 13. Bf2 {[%emt 0:08:09]} Rac8 {[%emt 0:25:41]} 14. Qe3 {[%emt 0:04:37]} Rfd8 {[%emt 0:05:09]} 15. Rad1 {[%emt 0:03:16]} e5 {[%emt 0:13:38]} 16. Nf5 {[%emt 0:01:25]} Nc5 {[%emt 0:04:16]} 17. fxe5 {[%emt 0:11:44]} dxe5 {[%emt 0:00:56]} 18. Qg5 {[%emt 0:00:52]} Ne6 {[%emt 0:05:09]} 19. Nxe7+ {[%emt 0:00:33]} Qxe7 {[%emt 0:00:15]} 20. Qxe5 {[%emt 0:00:32]} Rc5 {[%emt 0:04:21]} 21. Bxc5 1-0

[Event "FIDE WCCC U8 2018"]
[Site "Santiago de Compostela"]
[Date "2018.11.10"]
[Round "6"]
[White "Golovchenko, Bogdan"]
[Black "Mamedov, Edgar"]
[Result "1-0"]
[ECO "A18"]
[WhiteElo "1556"]
[BlackElo "1599"]
[Annotator "NA"]
[PlyCount "66"]
[EventDate "2018.11.04"]
[EventType "swiss"]
[EventCountry "ESP"]
[SourceTitle "playchess.com"]
[Source "ChessBase"]
[SourceQuality "1"]
[TimeControl "40/5400+30:1800+30"]

1. c4 {[%emt 0:00:00]} e6 {[%emt 0:01:16]} 2. Nc3 {[%emt 0:00:24]} Nf6 {[%emt 0:00:25]} 3. e4 {[%emt 0:00:54]} d5 {[%emt 0:00:12]} 4. e5 {[%emt 0:00:30]} d4 {[%emt 0:00:30]} 5. exf6 {[%emt 0:00:30]} dxc3 {[%emt 0:00:00]} 6. bxc3 {[%emt 0:00:00]} Qxf6 {[%emt 0:00:12]} 7. d4 {[%emt 0:00:46]} c5 {[%emt 0:00:21]} 8. Nf3 {[%emt 0:03:57]} cxd4 {[%emt 0:01:47]} 9. cxd4 {[%emt 0:00:27]} Bb4+ {[%emt 0:00:43]} 10. Bd2 {[%emt 0:00:11]} Bxd2+ {[%emt 0:00:26]} 11. Qxd2 {[%emt 0:00:11]} O-O {[%emt 0:01:13]} 12. Bd3 {[%emt 0:00:34]} Nc6 {[%emt 0:01:03]} 13. O-O {[%emt 0:00:15]} Rd8 {[%emt 0:00:54]} 14. Rfd1 {[%emt 0:01:46]} b6 {[%emt 0:02:41]} 15. Be4 {[%emt 0:18:56]} Bb7 {[%emt 0:02:08]} 16. Qe3 {[%emt 0:00:24]} Rac8 {[%emt 0:04:12]} 17. Rac1 {[%emt 0:05:04]} Na5 {[%emt 0:04:42]} 18. Bxb7 {[%emt 0:03:06]} Nxb7 {[%emt 0:00:09]} 19. Ne5 {[%emt 0:00:30]} Nd6 {[%emt 0:01:56]} 20. Qa3 {[%emt 0:01:15]} Nf5 {[%emt 0:06:58]} 21. Qb2 {[%emt 0:05:23]} h6 {[%emt 0:07:30]} 22. h3 {[%emt 0:02:58]} Qh4 {[%emt 0:03:30]} 23. Nf3 {[%emt 0:00:30]} Qf4 {[%emt 0:00:30]} 24. a4 {[%emt 0:18:42]} Rd6 {[%emt 0:09:55]} 25. Rc2 {[%emt 0:04:31]} Rcd8 {[%emt 0:05:37]} 26. Rcd2 {[%emt 0:00:12]} h5 {[%emt 0:06:07]} 27. Qc3 {[%emt 0:03:42]} g6 {[%emt 0:04:24]} 28. Rd3 {[%emt 0:03:44]} Rc8 {[%emt 0:03:37]} 29. c5 {[%emt 0:01:06]} Rd5 {[%emt 0:00:30]} 30. c6 {[%emt 0:00:30]} Qc7 {[%emt 0:08:46]} 31. Ne5 {[%emt 0:05:20]} Nxd4 {[%emt 0:00:30]} 32. Rxd4 {[%emt 0:01:30]} Qb8 {[%emt 0:06:36]} 33. c7 {[%emt 0:04:06]} Qb7 {[%emt 0:01:47]} 1-0

[Event "FIDE WCCC U8 2018"]
[Site "Santiago de Compostela"]
[Date "2018.11.10"]
[Round "6"]
[White "Gordeev, Denis"]
[Black "Nurgaliyev, Sauat"]
[Result "0-1"]
[ECO "A45"]
[WhiteElo "1553"]
[BlackElo "1764"]
[Annotator "NA"]
[PlyCount "100"]
[EventDate "2018.11.04"]
[EventType "swiss"]
[EventCountry "ESP"]
[SourceTitle "playchess.com"]
[Source "ChessBase"]
[SourceQuality "1"]
[TimeControl "40/5400+30:1800+30"]

1. d4 {[%emt 0:00:00]} Nf6 {[%emt 0:00:00]} 2. Nc3 {[%emt 0:00:31]} d5 {[%emt 0:00:00]} 3. Bf4 {[%emt 0:01:25]} Bf5 {[%emt 0:00:50]} 4. f3 {[%emt 0:00:55]} e6 {[%emt 0:01:43]} 5. g4 {[%emt 0:01:08]} Bg6 {[%emt 0:01:38]} 6. h4 {[%emt 0:01:12]} h6 {[%emt 0:02:19]} 7. e3 {[%emt 0:04:49]} a6 {[%emt 0:03:27]} 8. Bd3 {[%emt 0:01:41]} Bxd3 {[%emt 0:01:07]} 9. Qxd3 {[%emt 0:01:15]} Nc6 {[%emt 0:01:23]} 10. O-O-O {[%emt 0:05:06]} Qd7 {[%emt 0:01:57]} 11. Nge2 {[%emt 0:01:16]} O-O-O {[%emt 0:02:40]} 12. g5 {[%emt 0:04:41]} Nh5 {[%emt 0:01:29]} 13. Bh2 {[%emt 0:02:09]} Bd6 {[%emt 0:08:26]} 14. Bxd6 {[%emt 0:05:54]} Qxd6 {[%emt 0:00:51]} 15. e4 {[%emt 0:01:58]} Nf4 {[%emt 0:04:18]} 16. Qe3 {[%emt 0:01:43]} Nxe2+ {[%emt 0:01:29]} 17. Nxe2 {[%emt 0:01:40]} Na5 {[%emt 0:05:23]} 18. e5 {[%emt 0:04:45]} Qe7 {[%emt 0:01:28]} 19. b3 {[%emt 0:02:56]} Kb8 {[%emt 0:04:08]} 20. Kb2 {[%emt 0:03:00]} Qb4 {[%emt 0:02:13]} 21. Qc3 {[%emt 0:02:23]} Qb6 {[%emt 0:01:54]} 22. Nf4 {[%emt 0:01:45]} Nc6 {[%emt 0:09:28]} 23. g6 {[%emt 0:02:08]} Na7 {[%emt 0:10:14]} 24. gxf7 {[%emt 0:07:25]} Rhf8 {[%emt 0:01:42]} 25. Nh5 {[%emt 0:04:49]} Rxf7 {[%emt 0:02:17]} 26. Rhg1 {[%emt 0:01:08]} Nb5 {[%emt 0:05:28]} 27. Qe3 {[%emt 0:01:27]} Rdf8 {[%emt 0:02:56]} 28. Rg3 {[%emt 0:03:01]} Rf5 {[%emt 0:07:49]} 29. Nxg7 {[%emt 0:06:30]} Rf4 {[%emt 0:00:40]} 30. c3 {[%emt 0:08:47]} Rxh4 {[%emt 0:02:12]} 31. a4 {[%emt 0:01:15]} Na7 {[%emt 0:03:17]} 32. Rg6 {[%emt 0:01:15]} Rh2+ {[%emt 0:04:48]} 33. Rd2 {[%emt 0:01:37]} Rxf3 {[%emt 0:02:07]} 34. Qe1 {[%emt 0:01:40]} Rf1 {[%emt 0:04:33]} 35. Qe3 {[%emt 0:03:29]} Rhh1 {[%emt 0:00:06]} 36. Qd3 {[%emt 0:01:45]} Nc6 {[%emt 0:01:07]} 37. Rf6 {[%emt 0:02:08]} Ra1 {[%emt 0:00:30]} 38. Qc2 {[%emt 0:01:32]} Na5 {[%emt 0:00:21]} 39. Rf8+ {[%emt 0:01:57]} Ka7 {[%emt 0:00:05]} 40. c4 {[%emt 0:00:00]} Nxc4+ {[%emt 0:00:00]} 41. Kc3 {[%emt 0:01:30]} Rh3+ {[%emt 0:01:52]} 42. Rd3 {[%emt 0:00:49]} Qa5+ {[%emt 0:00:12]} 43. b4 {[%emt 0:00:28]} Ra3+ {[%emt 0:00:09]} 44. Qb3 {[%emt 0:00:23]} Rxb3+ {[%emt 0:00:10]} 45. Kxb3 {[%emt 0:00:09]} Rxd3+ {[%emt 0:00:04]} 46. Kc2 {[%emt 0:00:12]} Qxa4+ {[%emt 0:00:24]} 47. Kxd3 {[%emt 0:00:39]} Qd1+ {[%emt 0:00:02]} 48. Kc3 {[%emt 0:00:10]} Qd2+ {[%emt 0:00:26]} 49. Kb3 {[%emt 0:00:05]} Qb2+ {[%emt 0:00:03]} 50. Ka4 {[%emt 0:00:06]} b5# {[%emt 0:00:09]} 0-1

[Event "FIDE WCCC U8 2018"]
[Site "Santiago de Compostela"]
[Date "2018.11.10"]
[Round "6"]
[White "Yonal, Timur"]
[Black "Negron Lizarazo, Juan Sebastian"]
[Result "1-0"]
[ECO "A43"]
[WhiteElo "1524"]
[BlackElo "1340"]
[Annotator "NA"]
[PlyCount "113"]
[EventDate "2018.11.04"]
[EventType "swiss"]
[EventCountry "ESP"]
[SourceTitle "playchess.com"]
[Source "ChessBase"]
[SourceQuality "1"]
[TimeControl "40/5400+30:1800+30"]

1. d4 {[%emt 0:00:32]} c5 {[%emt 0:00:21]} 2. d5 {[%emt 0:00:32]} d6 {[%emt 0:01:52]} 3. Nc3 {[%emt 0:01:08]} Nf6 {[%emt 0:01:48]} 4. e4 {[%emt 0:05:15]} e6 {[%emt 0:03:08]} 5. Be2 {[%emt 0:04:25]} Be7 {[%emt 0:01:40]} 6. Nf3 {[%emt 0:00:45]} O-O {[%emt 0:01:13]} 7. O-O {[%emt 0:01:01]} exd5 {[%emt 0:00:57]} 8. exd5 {[%emt 0:01:43]} Bg4 {[%emt 0:06:19]} 9. Nd2 {[%emt 0:00:43]} Bxe2 {[%emt 0:00:42]} 10. Qxe2 {[%emt 0:02:12]} Nbd7 {[%emt 0:04:37]} 11. a4 {[%emt 0:09:01]} Re8 {[%emt 0:04:20]} 12. Nc4 {[%emt 0:04:27]} Qc7 {[%emt 0:01:52]} 13. Qd1 {[%emt 0:01:36]} a6 {[%emt 0:02:03]} 14. a5 {[%emt 0:00:46]} Rad8 {[%emt 0:05:34]} 15. Bf4 {[%emt 0:03:39]} Ne5 {[%emt 0:02:04]} 16. Ne3 {[%emt 0:09:00]} Qd7 {[%emt 0:14:23]} 17. h3 {[%emt 0:01:21]} h6 {[%emt 0:06:24]} 18. Bg3 {[%emt 0:03:59]} Ng6 {[%emt 0:15:32]} 19. Nc4 {[%emt 0:00:24]} Qc7 {[%emt 0:02:05]} 20. f4 {[%emt 0:05:27]} Nd7 {[%emt 0:04:15]} 21. Qf3 {[%emt 0:00:44]} Bh4 {[%emt 0:01:21]} 22. Bh2 {[%emt 0:01:50]} Ne7 {[%emt 0:01:24]} 23. g4 {[%emt 0:05:54]} Nf6 {[%emt 0:02:29]} 24. Rad1 {[%emt 0:01:47]} Ng6 {[%emt 0:04:51]} 25. Qg2 {[%emt 0:12:18]} Qe7 {[%emt 0:02:45]} 26. Rd2 {[%emt 0:01:32]} Nh7 {[%emt 0:04:08]} 27. Re2 {[%emt 0:05:22]} Qf6 {[%emt 0:00:43]} 28. Rd2 {[%emt 0:02:59]} Rd7 {[%emt 0:02:16]} 29. Ne4 {[%emt 0:00:56]} Qe7 {[%emt 0:00:23]} 30. Re2 {[%emt 0:01:19]} Qd8 31. Rf3 {[%emt 0:10:36]} Nf6 {[%emt 0:03:21]} 32. Nc3 {[%emt 0:00:57]} Rxe2 {[%emt 0:00:16]} 33. Qxe2 {[%emt 0:00:19]} Re7 {[%emt 0:00:14]} 34. Re3 {[%emt 0:00:12]} Rxe3 {[%emt 0:00:16]} 35. Qxe3 {[%emt 0:00:07]} Qf8 {[%emt 0:01:16]} 36. f5 {[%emt 0:00:12]} Bg5 {[%emt 0:00:17]} 37. Qe2 {[%emt 0:00:53]} Nf4 {[%emt 0:00:23]} 38. Qf3 {[%emt 0:00:15]} N4xd5 {[%emt 0:00:56]} 39. Nxd5 {[%emt 0:00:16]} Nxd5 {[%emt 0:00:08]} 40. Qxd5 {[%emt 0:00:00]} Qe7 41. Qf3 {[%emt 0:06:45]} Qe1+ {[%emt 0:01:31]} 42. Qf1 {[%emt 0:02:34]} Be3+ {[%emt 0:00:42]} 43. Kg2 {[%emt 0:00:34]} Qxf1+ {[%emt 0:00:42]} 44. Kxf1 {[%emt 0:00:08]} Bd4 {[%emt 0:00:17]} 45. Bxd6 {[%emt 0:00:31]} g6 {[%emt 0:00:23]} 46. c3 {[%emt 0:00:24]} Bf6 {[%emt 0:00:10]} 47. fxg6 {[%emt 0:00:08]} fxg6 {[%emt 0:00:03]} 48. Bxc5 {[%emt 0:00:07]} h5 {[%emt 0:00:14]} 49. Nd6 {[%emt 0:00:11]} b5 {[%emt 0:00:16]} 50. axb6 {[%emt 0:00:07]} Be7 {[%emt 0:00:08]} 51. b7 {[%emt 0:00:06]} Bxd6 {[%emt 0:00:12]} 52. Bxd6 {[%emt 0:00:05]} hxg4 {[%emt 0:00:07]} 53. b8=Q+ {[%emt 0:00:05]} Kf7 {[%emt 0:00:07]} 54. Qc7+ {[%emt 0:00:06]} Ke6 {[%emt 0:00:08]} 55. hxg4 {[%emt 0:00:16]} a5 {[%emt 0:00:09]} 56. c4 {[%emt 0:00:06]} a4 {[%emt 0:00:07]} 57. Qe7# {[%emt 0:00:06]} 1-0